bitfinex/quotes_ETHUSD_20240710
["timestamp","ask_amount","ask_price","bid_price","bid_amount"]
[1720573975319,2.2649,3048.6,3047.7,0.36156055]
[1720573975620,0.34375472,3048.7,3047.1,3.06561562]
[1720573975621,2.4274,3048.5,3047.1,3.06561562]
[1720573975841,2.4274,3048.5,3047.1,6.34741562]
[1720573975994,2.4274,3048.5,3047.1,6.78164758]
[1720573976183,2.4274,3048.5,3047.3,2.4776]
[1720573976379,2.4274,3048.5,3047.5,3.28137]
[1720573976626,2.4274,3048.5,3047.6,3.06560354]
[1720573981331,2.4274,3048.5,3047.6,3.0]
[1720573983587,2.4274,3048.5,3047.5,3.0]
[1720573983926,2.4274,3048.5,3047.6,0.5593]
[1720573985283,2.4274,3048.5,3047.7,0.06560933]
[1720573985727,2.4274,3048.5,3047.6,0.5593]
[1720573986902,5.593,3049.8,3047.6,0.5593]
[1720573986903,3.37555474,3050.8,3048.7,3.27998]
[1720573987254,11.39814719,3051.4,3048.9,2.593]
[1720573987255,3.0,3050.9,3048.9,2.593]
[1720573987391,1.50298667,3050.6,3049.0,3.0]
[1720573987582,3.62273089,3050.6,3048.8,3.0]
[1720573987800,3.62273089,3050.6,3048.6,3.0]
[1720573988407,1.50298667,3050.6,3048.6,3.0]
[1720573988736,0.45509487,3050.7,3048.9,2.593]
[1720573989028,1.01154897,3050.7,3049.0,3.0]
[1720573989437,0.5564541,3050.6,3049.1,0.0655781]
[1720573989794,2.4667,3050.5,3049.1,0.0655781]
[1720573989993,5.4667,3050.5,3049.1,0.0655781]
[1720573990213,2.4667,3050.5,3049.1,3.27964]
[1720573990446,2.4667,3050.5,3049.2,6.27946]
[1720573990737,2.4667,3050.5,3049.3,3.27943]
[1720573990954,2.4667,3050.5,3049.4,3.0]
[1720573991235,2.4667,3050.5,3049.4,6.27931]
[1720573991444,2.4667,3050.5,3049.5,1.28073554]
[1720573991644,2.4667,3050.5,3049.5,4.55995554]
[1720573991831,2.4667,3050.5,3049.6,3.0]
[1720573992140,2.4667,3050.5,3049.7,0.0655671]
[1720573992854,2.4667,3050.5,3049.8,3.27889]
[1720573993154,2.4667,3050.5,3049.9,3.72790564]
[1720573993155,2.4167,3050.5,3049.9,3.72790564]
[1720573994036,2.4167,3050.5,3049.9,6.94108471]
[1720573994238,2.4167,3050.5,3049.9,10.39407471]
[1720573994617,2.4167,3050.5,3049.9,13.67279471]
[1720573994848,2.4167,3050.5,3050.0,1.36727947]
[1720573995049,2.4167,3050.5,3050.0,4.64593947]
[1720573995253,0.1114527,3050.7,3050.1,3.0]
[1720573995560,0.1114527,3050.7,3050.2,0.06555416]
[1720573995767,0.1114527,3050.7,3050.3,0.63441042]
[1720573995958,0.1114527,3050.7,3050.4,0.06555205]
[1720573999981,0.1114527,3050.7,3050.5,3.27806]
[1720574000131,0.1114527,3050.7,3050.6,6.34357881]
[1720574000469,0.1114527,3050.7,3050.6,3.0]
[1720574000680,0.1114527,3050.7,3050.6,3.973106]
[1720574000920,0.1114527,3050.7,3050.6,4.03864785]
[1720574001329,2.315,3051.7,3050.6,4.03864785]
[1720574002389,2.315,3051.7,3050.6,7.31658785]
[1720574002832,2.315,3051.7,3050.9,3.453]
[1720574003127,2.315,3051.7,3051.0,3.3453]
[1720574003496,2.315,3051.7,3051.0,3.0]
[1720574003705,2.315,3051.7,3050.6,8.443106]
[1720574004012,2.315,3051.7,3050.7,3.0]
[1720574007028,2.315,3051.7,3050.6,8.443106]
[1720574007335,2.4138,3052.1,3050.6,7.47]
[1720574007746,2.4138,3051.9,3050.6,7.47]
[1720574008047,2.4138,3051.8,3050.6,7.47]
[1720574008216,2.4138,3051.8,3050.2,7.47]
[1720574009243,2.4138,3051.8,3050.4,3.453]
[1720574009428,2.4138,3051.8,3050.5,3.0655402]
[1720574009740,2.4138,3051.8,3050.6,0.65185402]
[1720574010310,2.4138,3051.8,3050.6,3.00635402]
[1720574010506,2.4138,3051.8,3050.7,3.0]
[1720574010817,2.4138,3051.8,3050.6,0.65185402]
[1720574012450,2.4138,3051.8,3050.6,0.7173919]
[1720574012647,2.4138,3051.8,3050.9,2.588]
[1720574012810,2.4138,3051.8,3051.0,3.0]
[1720574013207,2.4138,3051.8,3051.0,3.06553788]
[1720574017151,2.4138,3051.8,3051.3,2.588]
[1720574018011,2.4138,3051.8,3051.0,10.47]
[1720574018350,2.4138,3051.8,3051.1,1.3058]
[1720574019547,2.4138,3051.8,3051.0,10.47]
[1720574020143,2.4138,3051.8,3051.0,7.47]
[1720574023150,2.4138,3051.8,3050.7,7.47]
[1720574024536,2.4138,3051.8,3050.8,0.06555387]
[1720574024740,2.4138,3051.8,3050.9,0.75355539]
[1720574026239,2.4138,3051.8,3051.0,0.06553844]
[1720574027931,2.4138,3051.8,3050.9,3.34155539]
[1720574028756,2.4138,3051.8,3051.0,0.0655349]
[1720574028966,2.4138,3051.8,3051.1,0.34070903]
[1720574029160,2.4138,3051.8,3051.2,0.06553491]
[1720574029368,2.4138,3051.8,3051.1,0.34070903]
[1720574031740,2.4138,3051.8,3050.9,0.75355539]
[1720574034431,2.4138,3051.8,3050.9,0.81909373]
[1720574034741,15.57555474,3053.4,3051.0,0.06553621]
[1720574034742,2.4574,3052.5,3051.0,0.06553621]
[1720574035070,0.693664,3052.4,3051.1,0.57724916]
[1720574035848,0.693664,3052.4,3051.2,0.06553045]
[1720574037269,0.693664,3052.4,3051.1,0.57724916]
[1720574037444,0.693664,3052.4,3051.2,0.36427796]
[1720574037647,0.693664,3052.4,3051.3,0.06553053]
[1720574037844,0.693664,3052.4,3051.2,0.36427796]
[1720574038285,0.693664,3052.4,3051.3,0.06553049]
[1720574038464,0.693664,3052.4,3051.2,0.36427796]
[1720574039184,2.463,3052.3,3051.2,0.36427796]
[1720574039338,0.693664,3052.2,3051.2,0.36427796]
[1720574040578,0.69391428,3052.2,3051.2,0.36427796]
[1720574042259,0.69391428,3052.2,3051.3,0.06553483]
[1720574042879,0.69391428,3052.2,3051.3,2.65353483]
[1720574043038,0.69401252,3052.2,3051.4,3.30178128]
[1720574043243,0.69401252,3052.2,3051.5,0.0655261]
[1720574043541,0.69396265,3052.2,3051.5,0.0655261]
[1720574043884,0.69396265,3052.2,3051.4,3.30178128]
[1720574044058,0.69396265,3052.2,3051.5,0.58897813]
[1720574044394,0.69397252,3052.2,3051.5,0.58897813]
[1720574045356,0.69397252,3052.2,3051.6,0.06552605]
[1720574045664,0.69397252,3052.5,3051.6,0.06552605]
[1720574045861,0.69397252,3052.5,3051.5,0.58897813]
[1720574046064,0.69397252,3052.5,3051.6,0.38907594]
[1720574046293,2.3936,3052.6,3051.6,0.38907594]
[1720574046496,0.69383349,3052.5,3051.6,0.38907594]
[1720574047189,0.69383349,3052.5,3051.6,0.45459977]
[1720574049682,0.69382049,3052.5,3051.6,0.45459977]
[1720574050758,0.69382778,3052.5,3051.6,0.45459977]
[1720574051006,0.69382778,3052.5,3051.6,0.38907594]
[1720574052302,0.69382778,3052.5,3051.7,5.1187284]
[1720574052506,0.69382778,3053.1,3051.8,3.55078043]
[1720574052799,2.4385,3053.0,3051.8,3.55078043]
[1720574053002,0.69387291,3052.9,3051.8,3.55078043]
[1720574053207,0.69393556,3052.9,3051.9,2.4652]
[1720574053417,0.1114527,3053.7,3052.7,2.4652]
[1720574053580,0.1114527,3053.7,3053.0,2.588]
[1720574053779,0.1114527,3053.7,3053.1,0.06549805]
[1720574054289,0.1114527,3053.7,3053.1,0.26534981]
[1720574054476,0.1114527,3053.7,3052.8,3.0]
[1720574054700,0.1114527,3053.7,3052.7,5.4652]
[1720574054866,0.1114527,3053.7,3052.7,3.0]
[1720574056418,0.1114527,3053.7,3052.4,7.47]
[1720574056562,2.4687,3053.6,3052.4,7.47]
[1720574056761,2.4687,3053.6,3052.4,8.15253411]
[1720574058810,2.4687,3053.6,3052.4,0.68253411]
[1720574058992,2.4687,3053.6,3052.1,10.47]
[1720574060580,2.4075,3053.4,3052.1,3.0]
[1720574061097,5.4075,3053.4,3052.0,0.30159804]
[1720574061308,3.464,3053.2,3051.8,7.47]
[1720574061606,3.464,3052.6,3050.8,12.3915]
[1720574061778,3.464,3052.6,3050.9,0.23335]
[1720574061985,7.014,3052.5,3050.9,0.23335]
[1720574062303,7.014,3052.5,3051.0,0.515485]
[1720574064930,3.0,3052.3,3050.9,0.23335]
[1720574065094,5.8264,3052.2,3050.5,7.47]
[1720574065419,9.2904,3052.2,3050.5,7.47]
[1720574065629,9.2904,3052.2,3050.6,2.46699]
[1720574065981,3.464,3052.0,3050.5,7.47]
[1720574066218,2.3556,3052.1,3050.5,7.47]
[1720574066219,3.55,3051.9,3050.5,7.47]
[1720574066396,3.55,3051.9,3050.2,7.47]
[1720574066397,0.55,3051.9,3050.2,7.47]
[1720574067493,0.55,3051.9,3050.3,3.0]
[1720574069699,2.3584,3051.8,3050.3,3.0]
[1720574069900,5.3584,3051.8,3050.3,3.0]
[1720574073834,0.05719222,3051.7,3050.3,3.0]
[1720574074491,2.3899,3051.6,3050.3,3.0]
[1720574074695,2.3899,3051.6,3050.4,1.047]
[1720574078649,2.3899,3051.6,3050.4,3.70055467]
[1720574078935,2.3899,3051.6,3050.5,3.0]
[1720574079137,2.3899,3051.6,3050.6,0.06554436]
[1720574079350,2.3899,3051.6,3050.5,3.0]
[1720574079543,2.3899,3051.6,3050.6,0.72904438]
[1720574079833,2.3899,3051.6,3050.6,3.14124438]
[1720574080036,2.3899,3051.6,3050.7,3.0]
[1720574081839,2.3899,3051.6,3050.8,0.06554357]
[1720574082043,2.3899,3051.6,3050.7,3.0]
[1720574082271,2.3899,3051.6,3050.8,0.60757]
[1720574083635,2.3899,3051.6,3050.9,0.0655436]
[1720574084871,6.86457659,3052.5,3050.9,0.0655436]
[1720574085043,2.3186,3052.4,3050.9,0.0655436]
[1720574085245,2.3186,3052.4,3050.9,3.0655436]
[1720574085430,2.3186,3052.4,3051.0,0.62611136]
[1720574086988,2.3186,3052.4,3051.1,0.06553502]
[1720574088230,2.3186,3052.4,3051.2,2.588]
[1720574088430,2.3437,3052.8,3051.3,6.34271895]
[1720574088632,2.3437,3052.8,3051.6,2.588]
[1720574088886,2.3437,3052.8,3051.7,3.0655207]
[1720574089085,2.3437,3052.8,3051.8,0.06552215]
[1720574089737,2.3437,3052.8,3051.7,3.0]
[1720574090380,2.3437,3052.8,3051.4,0.8595719]
[1720574094036,2.3437,3052.8,3051.5,0.06552593]
[1720574095085,2.3437,3052.8,3051.6,2.588]
[1720574095244,2.3437,3052.8,3051.7,3.0]
[1720574096262,2.3437,3052.8,3051.8,0.06552594]
[1720574096474,2.3437,3052.8,3051.9,0.30655259]
[1720574097472,2.3437,3052.8,3052.0,0.06552591]
[1720574098052,2.3437,3052.8,3051.9,2.76305259]
[1720574098251,2.3437,3052.8,3052.0,0.06551583]
[1720574098502,2.2923,3053.4,3052.1,2.588]
[1720574098686,2.2923,3053.4,3052.2,3.33086478]
[1720574098884,2.2923,3053.4,3052.3,0.06551321]
[1720574099887,2.2923,3053.4,3052.2,3.26535158]
[1720574100089,0.3433211,3053.5,3052.3,2.3854]
[1720574100300,0.1114527,3053.7,3052.5,2.588]
[1720574100586,2.2923,3053.6,3052.6,3.0]
[1720574100794,2.2923,3053.6,3052.7,0.3]
[1720574100965,2.2923,3053.6,3052.3,0.58533516]
[1720574101577,2.2923,3053.6,3052.3,0.65084626]
[1720574102755,0.1114527,3053.7,3052.5,2.588]
[1720574103094,0.1114527,3053.7,3052.6,3.06550662]
[1720574103692,2.4887,3053.6,3052.6,3.0]
[1720574104002,2.4887,3053.6,3052.3,8.05533516]
[1720574104003,2.4887,3053.6,3052.4,3.0]
[1720574114221,2.4874,3053.4,3052.4,3.0]
[1720574114602,2.4874,3053.4,3052.3,8.05533516]
[1720574114802,2.4874,3053.4,3052.4,0.83206867]
[1720574115027,2.4981,3053.2,3052.3,7.47]
[1720574115254,2.3198,3053.1,3052.0,7.47]
[1720574115529,3.01368473,3053.0,3052.0,7.47]
[1720574115701,2.3198,3053.0,3052.0,7.47]
[1720574116312,2.2539,3052.8,3052.0,7.47]
[1720574116527,0.55,3052.9,3051.7,7.47]
[1720574116528,0.55,3052.7,3051.7,7.47]
[1720574116847,2.4311,3052.6,3051.7,7.47]
[1720574117003,2.9811,3052.5,3051.7,7.47]
[1720574117205,2.4311,3052.5,3051.7,7.47]
[1720574117426,5.4311,3052.5,3051.7,7.47]
[1720574117623,2.4311,3052.5,3051.7,7.47]
[1720574118409,2.4809,3052.9,3051.8,0.06553332]
[1720574118596,2.4809,3052.9,3051.9,1.00296333]
[1720574121038,2.4464,3052.7,3051.7,7.47]
[1720574121193,2.4464,3052.7,3051.4,10.7288]
[1720574121731,0.69401471,3052.6,3051.4,10.7288]
[1720574121943,0.69401471,3052.6,3051.5,2.54768]
[1720574122147,2.3361,3052.5,3051.5,2.54768]
[1720574122299,2.3361,3052.5,3051.1,7.47]
[1720574122300,2.4755,3051.9,3051.1,7.47]
[1720574122655,2.4755,3051.9,3050.5,7.47]
[1720574122656,5.9345,3051.7,3050.5,7.47]
[1720574123004,7.009,3051.6,3050.5,7.47]
[1720574123222,7.009,3051.6,3050.5,8.217]
[1720574123807,10.009,3051.6,3050.5,7.47]
[1720574124006,2.3639,3051.5,3050.5,7.47]
[1720574124347,0.55,3051.4,3050.5,7.47]
[1720574124843,7.009,3051.4,3049.9,7.47]
[1720574125047,7.009,3051.4,3049.6,7.7288]
[1720574125336,3.459,3051.2,3049.6,7.7288]
[1720574125535,7.009,3051.1,3049.6,7.7288]
[1720574125740,7.009,3051.1,3049.7,1.03168]
[1720574126615,7.009,3051.1,3049.7,4.03168]
[1720574130654,10.009,3051.1,3049.7,1.03168]
[1720574130853,10.009,3051.1,3049.6,7.47]
[1720574130854,2.2963,3050.6,3049.6,7.47]
[1720574131020,2.2963,3050.6,3049.3,7.47]
[1720574131251,5.2963,3050.6,3049.3,7.47]
[1720574131947,0.55,3050.5,3049.1,1.216]
[1720574132145,3.55,3050.5,3049.1,1.216]
[1720574132395,3.55,3050.5,3049.2,0.8686]
[1720574133648,3.459,3050.4,3049.2,0.8686]
[1720574133850,2.3878,3050.2,3049.2,0.8686]
[1720574134485,3.0,3050.3,3048.3,7.47]
[1720574134486,6.459,3049.9,3048.3,7.47]
[1720574134787,6.459,3049.9,3047.9,12.32359802]
[1720574134788,5.2803,3049.8,3048.0,7.47]
[1720574134986,0.55,3049.7,3048.0,8.9611598]
[1720574135973,0.55,3049.7,3048.1,3.0]
[1720574136368,0.55,3049.7,3048.1,3.06559901]
[1720574137462,0.55,3049.7,3048.1,3.0]
[1720574137662,0.55,3049.7,3048.2,1.19611598]
[1720574138090,5.2803,3049.8,3048.3,0.06559446]
[1720574138893,2.2803,3049.8,3048.3,3.06559446]
[1720574139094,2.2803,3049.8,3048.6,2.588]
[1720574139295,2.3486,3050.5,3048.7,3.87438078]
[1720574139591,2.3486,3050.5,3048.8,0.06557747]
[1720574140699,5.3486,3050.5,3048.7,3.87437751]
[1720574140924,5.3486,3050.5,3048.8,0.63968]
[1720574142007,5.3486,3050.5,3048.8,0.70525759]
[1720574142361,5.3486,3050.5,3048.9,2.3979]
[1720574142643,2.3486,3050.5,3049.0,2.65357758]
[1720574142949,2.3486,3050.5,3049.1,3.80514776]
[1720574143178,0.34355584,3050.8,3049.3,5.69574]
[1720574143449,3.0,3052.1,3049.2,0.06557759]
[1720574143450,7.46,3052.3,3050.6,2.588]
[1720574143660,2.4593,3052.2,3050.7,3.0]
[1720574143861,2.4593,3052.2,3050.7,3.32434806]
[1720574146111,2.4593,3052.2,3050.7,4.03555942]
[1720574146325,2.3131,3052.7,3051.0,2.588]
[1720574146519,2.3131,3052.7,3051.1,3.0655384]
[1720574146821,2.3131,3052.7,3051.1,5.309]
[1720574146822,2.6564883,3052.7,3051.1,5.309]
[1720574147028,2.6564883,3052.7,3051.2,0.7897]
[1720574147325,0.05717527,3052.9,3051.4,2.588]
[1720574147665,0.05717527,3052.9,3051.5,3.06552655]
[1720574147823,2.3134,3053.2,3051.8,2.588]
[1720574148023,2.3134,3053.2,3051.9,0.06552059]
[1720574148232,2.3134,3053.2,3051.9,3.06552059]
[1720574148971,0.05716128,3053.5,3052.0,2.3301]
[1720574149129,0.1114527,3053.7,3052.3,2.588]
[1720574149333,0.1114527,3053.7,3052.4,0.3243121]
[1720574149857,0.1114527,3053.7,3052.4,0.2588]
[1720574150226,0.1114527,3053.7,3052.5,0.06551214]
[1720574150431,0.1114527,3053.7,3052.4,0.2588]
[1720574151171,3.1114527,3053.7,3052.5,0.06551192]
[1720574151411,3.1114527,3053.7,3052.5,0.29778238]
[1720574151576,0.1114527,3053.7,3052.5,0.29778238]
[1720574151913,3.0,3053.6,3052.5,0.29778238]
[1720574152202,0.1114527,3053.7,3052.5,0.36329435]
[1720574152413,0.1114527,3053.7,3052.7,2.588]
[1720574152616,0.1114527,3053.7,3052.8,0.33085026]
[1720574152777,0.1114527,3053.7,3052.8,3.33085026]
[1720574153464,0.1114527,3053.7,3052.9,2.3783]
[1720574153661,0.1114527,3053.7,3053.1,2.588]
[1720574153896,0.1114527,3053.7,3053.2,3.06549252]
[1720574154106,0.1114527,3053.7,3053.3,0.63084174]
[1720574155214,0.1114527,3053.7,3053.3,0.56534925]
[1720574160391,0.1114527,3053.7,3052.9,9.8483]
[1720574160392,0.1114527,3053.7,3052.9,7.47]
[1720574160591,3.1114527,3053.7,3052.5,7.76778238]
[1720574160792,0.55,3053.6,3052.5,7.47]
[1720574161395,0.1114527,3053.7,3052.7,3.445]
[1720574161591,0.1114527,3053.7,3052.8,0.35105153]
[1720574161832,0.1114527,3053.7,3052.5,7.47]
[1720574162032,0.55,3053.6,3052.5,7.47]
[1720574162396,0.55,3053.6,3051.7,9.8448]
[1720574162397,5.8592,3053.5,3051.7,9.8448]
[1720574162596,6.459,3053.3,3051.8,0.98448]
[1720574162831,6.459,3053.3,3051.5,3.445]
[1720574162995,3.459,3053.1,3051.5,3.445]
[1720574163196,3.55,3053.0,3051.5,3.445]
[1720574163501,3.55,3053.0,3051.6,1.0915]
[1720574164109,0.55,3053.0,3051.6,1.0915]
[1720574164353,0.55,3053.0,3051.6,4.0915]
[1720574164561,3.0,3053.1,3051.6,4.0915]
[1720574164856,5.8592,3053.5,3051.7,0.81917352]
[1720574164857,6.459,3053.4,3051.7,0.81917352]
[1720574165157,0.55,3053.3,3051.7,0.81917352]
[1720574165743,2.4002,3053.5,3051.7,0.81917352]
[1720574165939,0.1114527,3053.7,3052.0,3.445]
[1720574166124,0.1114527,3053.7,3052.1,3.06550862]
[1720574167960,0.1114527,3053.7,3052.1,3.0]
[1720574168179,3.459,3053.5,3052.1,3.0]
[1720574168335,3.459,3053.5,3052.1,3.6445]
[1720574168672,8.8383,3053.3,3051.5,3.445]
[1720574169035,3.55,3053.2,3051.5,3.445]
[1720574169237,3.55,3053.2,3051.6,1.0915]
[1720574169647,3.459,3053.1,3051.6,1.0915]
[1720574169860,3.55,3053.0,3051.6,4.0915]
[1720574170755,3.55,3053.0,3051.4,7.47]
[1720574170756,3.459,3052.9,3051.4,7.47]
[1720574171141,2.474,3052.6,3051.4,7.47]
[1720574171341,4.009,3052.5,3051.0,7.47]
[1720574171546,3.459,3052.1,3050.5,7.47]
[1720574171744,3.459,3052.1,3050.1,14.5944]
[1720574171745,3.459,3051.7,3050.2,7.47]
[1720574171977,3.459,3051.7,3050.2,9.27394]
[1720574172178,3.459,3051.5,3050.2,1.80394]
[1720574172465,2.474,3051.3,3049.0,13.3494]
[1720574172667,3.459,3051.2,3049.1,1.33494]
[1720574172868,3.459,3051.2,3049.0,5.8794]
[1720574172869,4.009,3051.2,3049.0,5.8794]
[1720574173025,3.459,3051.0,3049.0,5.8794]
[1720574173230,3.55,3050.9,3049.0,5.8794]
[1720574173430,3.55,3050.9,3049.1,0.58794]
[1720574174163,0.55,3050.9,3049.1,0.58794]
[1720574174376,0.0572095,3050.9,3049.5,3.445]
[1720574174543,2.474,3051.3,3049.6,0.06556686]
[1720574174728,5.2782,3051.7,3049.6,0.41006686]
[1720574174925,3.55,3051.6,3049.6,0.3445]
[1720574175156,3.0,3051.5,3049.7,0.37895]
[1720574175360,0.55,3051.4,3049.7,0.37895]
[1720574176457,0.55,3051.4,3049.8,0.06556508]
[1720574176986,0.55,3051.4,3049.9,2.43]
[1720574177190,0.55,3051.4,3050.0,0.06556437]
[1720574177401,0.05719986,3051.8,3050.0,6.78917437]
[1720574177604,2.2907,3052.2,3050.0,3.51056437]
[1720574177762,0.05700473,3052.0,3050.1,4.22191744]
[1720574178164,0.05700473,3052.0,3050.2,0.06555252]
[1720574178592,0.05700473,3052.0,3050.1,4.22191744]
[1720574178804,6.459,3051.8,3050.1,4.22191744]
[1720574179095,0.55,3051.7,3050.2,0.76669174]
[1720574179597,4.009,3051.7,3050.2,0.76669174]
[1720574179769,7.009,3051.7,3049.9,2.43]
[1720574181424,3.55,3051.7,3049.9,2.43]
[1720574181789,0.55,3051.7,3049.9,2.43]
[1720574182006,4.009,3051.7,3050.0,0.543]
[1720574182199,3.459,3051.5,3050.0,3.543]
[1720574182415,0.55,3051.4,3050.0,3.543]
[1720574182591,0.55,3051.4,3050.1,0.5973]
[1720574184195,0.34338671,3051.3,3050.1,0.5973]
[1720574185404,0.34338671,3051.3,3050.2,2.4267]
[1720574185748,0.34338671,3051.3,3050.2,5.4267]
[1720574186046,0.34338671,3051.3,3050.3,0.93681223]
[1720574186335,0.34338671,3051.3,3050.3,4.00235984]
[1720574187095,0.34338671,3051.3,3050.6,2.3732]
[1720574187322,0.34338671,3051.3,3050.7,0.06554247]
[1720574188738,0.34338671,3051.3,3050.6,5.3732]
[1720574188891,0.34338671,3051.3,3050.7,0.88182]
[1720574191493,0.34338671,3051.3,3050.8,0.06554644]
[1720574192796,8.9529,3052.7,3051.0,3.445]
[1720574192797,2.4939,3052.7,3051.0,3.445]
[1720574193036,0.34330293,3051.8,3051.2,2.4582]
[1720574193232,0.05699153,3052.8,3051.2,2.4582]
[1720574193396,0.3432834,3051.8,3051.3,0.604852]
[1720574193826,0.05699153,3052.8,3051.3,0.604852]
[1720574194033,0.34328942,3051.8,3051.3,0.604852]
[1720574194209,0.05699153,3052.8,3051.3,0.604852]
[1720574194395,0.34329576,3051.8,3051.4,0.3063052]
[1720574194624,0.34329576,3051.8,3051.3,0.604852]
[1720574194821,3.459,3052.7,3051.3,0.604852]
[1720574195004,0.34330185,3051.8,3051.3,0.604852]
[1720574195210,2.4989,3052.2,3051.1,0.59032]
[1720574195413,0.55,3052.1,3051.1,0.59032]
[1720574195630,0.34330895,3051.8,3051.1,3.59032]
[1720574196935,0.34330895,3051.8,3051.1,3.65585975]
[1720574197928,0.34330895,3051.8,3051.2,2.3175]
[1720574198124,0.34330895,3051.8,3051.3,0.06553308]
[1720574198371,0.34330895,3051.8,3051.4,0.53830331]
[1720574198661,0.34330895,3051.8,3051.5,0.06553192]
[1720574199523,0.05699153,3052.8,3051.4,0.53830331]
[1720574199726,0.34328858,3052.3,3051.5,0.06553]
[1720574200232,0.34328101,3052.3,3051.5,0.06553]
[1720574200647,0.34328101,3052.3,3051.4,0.53830331]
[1720574201364,0.34328101,3052.3,3051.5,0.0655251]
[1720574202150,0.34328101,3052.3,3051.4,0.53830331]
[1720574202396,0.34328101,3052.3,3051.5,0.35383033]
[1720574205490,0.34328101,3052.3,3051.5,0.41935961]
[1720574206086,0.0570157,3053.2,3052.3,2.3953]
[1720574206297,3.37555474,3054.7,3052.4,0.64953893]
[1720574206298,2.4561,3054.2,3052.4,0.64953893]
[1720574206527,2.4561,3054.3,3052.8,2.3953]
[1720574206674,0.34320153,3054.0,3052.8,5.46080045]
[1720574207189,0.34320153,3054.0,3052.8,5.3953]
[1720574208106,0.34320153,3054.0,3052.8,5.46080045]
[1720574208304,0.34320153,3054.0,3052.9,0.89058004]
[1720574208611,0.34320153,3054.0,3053.0,0.06549657]
[1720574209970,0.34320153,3054.0,3052.9,3.89058004]
[1720574213115,0.34320153,3054.0,3052.9,3.95607394]
[1720574215379,0.34320153,3054.0,3052.9,3.89058004]
[1720574215574,0.34320153,3054.0,3053.0,0.628588]
[1720574219129,5.9491,3053.9,3052.3,2.3126]
[1720574219293,0.55,3053.6,3052.3,2.3126]
[1720574219612,4.009,3053.6,3051.9,9.7826]
[1720574219818,3.0,3053.4,3051.9,9.7826]
[1720574220024,2.3768,3053.2,3051.9,9.7826]
[1720574220176,0.55,3053.1,3051.9,2.3126]
[1720574220378,3.55,3053.1,3051.9,2.3126]
[1720574221031,3.55,3053.1,3051.5,9.8216]
[1720574221237,3.0,3053.0,3051.5,2.3516]
[1720574221381,0.55,3052.9,3051.5,2.3516]
[1720574221726,0.55,3052.9,3051.6,0.23516]
[1720574222028,0.89329039,3052.9,3051.6,3.23516]
[1720574224991,4.35229039,3052.9,3051.2,3.445]
[1720574225191,4.35229039,3052.9,3049.8,4.4661284]
[1720574225192,6.459,3052.6,3050.8,7.47]
[1720574225398,6.459,3052.6,3050.5,2.4421]
[1720574225399,3.459,3052.4,3050.5,2.4421]
[1720574225716,5.8415,3052.1,3050.5,2.4421]
[1720574226028,4.009,3052.0,3050.5,2.4421]
[1720574226185,3.0,3051.9,3050.6,0.24421]
[1720574226385,0.55,3051.8,3050.6,0.24421]
[1720574226628,3.0,3051.9,3050.7,0.06555404]
[1720574226929,2.3825,3052.1,3050.7,0.2751864]
[1720574227231,2.3825,3052.1,3050.6,3.0]
[1720574227386,0.55,3052.0,3050.3,3.0]
[1720574227719,3.55,3052.0,3050.3,3.0]
[1720574227897,3.55,3052.0,3050.4,0.6445]
[1720574229096,3.55,3052.0,3050.5,0.06555263]
[1720574229302,0.05703098,3052.2,3050.6,2.308]
[1720574229489,2.4665,3052.6,3050.8,3.445]
[1720574229708,0.05704845,3052.1,3050.9,3.0]
[1720574229921,0.05704845,3052.1,3050.6,5.308]
[1720574230129,3.0,3052.4,3050.7,3.5308]
[1720574230429,0.05705493,3052.1,3050.7,0.5308]
[1720574230634,0.05705493,3052.1,3050.7,3.0]
[1720574230789,0.05705493,3052.1,3050.6,2.308]
[1720574231145,0.05705493,3052.1,3050.7,0.06553984]
[1720574231503,0.05705493,3052.1,3050.6,2.308]
[1720574231740,0.05705493,3052.1,3050.7,0.23735398]
[1720574231888,0.05705493,3052.1,3050.7,3.23735398]
[1720574232627,0.05705493,3052.1,3050.8,0.06554683]
[1720574234444,0.05705493,3052.1,3050.7,3.23735398]
[1720574234940,0.05705493,3052.1,3050.8,0.06554397]
[1720574235102,0.05705493,3052.1,3050.9,0.3302898]
[1720574236617,2.4723,3052.0,3050.9,0.3302898]
[1720574236808,2.4723,3052.0,3050.7,3.0]
[1720574237005,0.55,3051.9,3050.3,3.445]
[1720574237318,3.55,3051.9,3050.1,9.7732]
[1720574237651,3.55,3051.9,3050.2,1.01855529]
[1720574238605,3.55,3051.9,3050.2,4.01855529]
[1720574240843,2.4453,3051.8,3050.2,4.01855529]
[1720574241028,0.55,3051.7,3050.2,4.01855529]
[1720574241231,0.55,3051.7,3049.9,3.0]
[1720574241580,0.55,3051.7,3049.8,3.445]
[1720574241581,2.4453,3051.4,3049.8,3.445]
[1720574241769,2.4453,3051.2,3049.4,7.47]
[1720574242064,3.3288,3051.5,3048.9,7.47]
[1720574242065,5.9043,3050.9,3048.9,7.47]
[1720574242213,5.9043,3050.9,3049.0,1.37945529]
[1720574242412,3.0,3050.8,3049.0,1.37945529]
[1720574242616,3.0,3050.8,3049.1,2.591]
[1720574243762,5.4453,3050.9,3049.1,2.591]
[1720574243932,0.55,3050.8,3049.2,0.46262307]
[1720574244142,2.4453,3050.9,3049.5,2.591]
[1720574244433,2.4453,3050.9,3049.9,2.591]
[1720574244664,2.4453,3050.9,3050.0,0.06557042]
[1720574245152,0.34329587,3051.8,3050.0,0.06557042]
[1720574245381,2.2895,3051.5,3049.8,0.47791622]